fUSD/lending_fUSD_20260628
["ID","MTS","AMOUNT","RATE_DAILY","PERIOD"]
[426588729,1782639046000,-305.17736248,0.00026386,2]
[426588732,1782639046000,-224.35435433,0.00026387,2]
[426588734,1782639046000,-304.24288072,0.00026389,2]
[426588738,1782639046000,-310.81282891,0.00026389,2]
[426588737,1782639046000,-306.43479761,0.00026389,2]
[426588733,1782639046000,-184.20775577,0.00026387,2]
[426588856,1782639388000,175.0,0.0002907,120]
[426588857,1782639470000,895.63,0.00028148,120]
[426588860,1782639953000,-312.01,0.00011478,2]
[426588861,1782639953000,-104.59287941,0.00011611,2]
[426588863,1782640031000,-208.31608591,0.00010904,2]
[426588865,1782640035000,-80.6382227,0.00011287,2]
[426588864,1782640035000,-93.55391409,0.00010904,2]
[426588867,1782640037000,118.90142523,0.00010398,2]
[426588866,1782640037000,300.61,0.00010359,2]
[426588868,1782640037000,150.0,0.00010398,2]
[426588871,1782640037000,300.61,0.00010476,2]
[426588870,1782640037000,300.61,0.00010437,2]
[426588872,1782640037000,300.61,0.00010515,2]
[426588869,1782640037000,31.70857477,0.00010398,2]
[426588874,1782640038000,300.61,0.00010593,2]
[426588873,1782640038000,300.61,0.00010554,2]
[426588875,1782640039000,300.61,0.00010632,2]
[426588877,1782640040000,-45.40712059,0.00011611,2]
[426588878,1782640040000,-301.87,0.00011669,2]
[426588876,1782640040000,-221.2317773,0.00011287,2]
[426588881,1782640040000,141.41712312,0.0001067,2]
[426588880,1782640040000,159.19287688,0.0001067,2]
[426588882,1782640040000,300.61,0.00010709,2]
[426588879,1782640040000,-1420.03115625,0.00011682,2]
[426588883,1782640113000,487.16,0.00010601,2]
[426588884,1782640122000,678.3,0.00010601,2]
[426588896,1782640146000,-300.61,0.00010943,2]
[426588902,1782640146000,-150.0,0.00011113,2]
[426588900,1782640146000,-300.61,0.0001106,2]
[426588898,1782640146000,-150.0,0.00011005,2]
[426588897,1782640146000,-300.61,0.00010982,2]
[426588901,1782640146000,-300.61,0.00011099,2]
[426588899,1782640146000,-300.61,0.00011021,2]
[426588895,1782640146000,-300.61,0.00010904,2]
[426588893,1782640146000,-678.3,0.00010866,2]
[426588885,1782640146000,-300.61,0.00010748,2]
[426588892,1782640146000,-300.61,0.00010865,2]
[426588889,1782640146000,-216.54711319,0.00010787,2]
[426588891,1782640146000,-300.61,0.00010826,2]
[426588890,1782640146000,-270.83793779,0.00010799,2]
[426588888,1782640146000,-300.61,0.00010787,2]
[426588887,1782640146000,-150.0,0.00010768,2]
[426588903,1782640146000,-678.3,0.00011131,2]
[426588886,1782640146000,-250.0,0.00010758,2]
[426588894,1782640146000,-150.0,0.00010897,2]
[426588904,1782640146000,-300.61,0.00011138,2]
[426588926,1782640146000,-188.680487,0.00012039,2]
[426588906,1782640146000,-300.61,0.00011216,2]
[426588925,1782640146000,-300.0,0.00011995,2]
[426588922,1782640146000,-389.02,0.00011946,2]
[426588920,1782640146000,-312.01,0.0001178,2]
[426588921,1782640146000,-250.0,0.00011823,2]
[426588924,1782640146000,-500.0,0.00011995,2]
[426588923,1782640146000,-193.0,0.00011995,2]
[426588915,1782640146000,-255.0,0.00011436,2]
[426588916,1782640146000,-150.0,0.00011436,2]
[426588917,1782640146000,-300.61,0.00011449,2]
[426588905,1782640146000,-300.61,0.00011177,2]
[426588918,1782640146000,-678.3,0.00011661,2]
[426588907,1782640146000,-150.0,0.00011221,2]
[426588910,1782640146000,-150.0,0.00011328,2]
[426588909,1782640146000,-300.61,0.00011294,2]
[426588908,1782640146000,-300.61,0.00011255,2]
[426588919,1782640146000,-1232.36884375,0.00011682,2]
[426588912,1782640146000,-300.61,0.00011371,2]
[426588913,1782640146000,-678.3,0.00011396,2]
[426588914,1782640146000,-300.61,0.0001141,2]
[426588911,1782640146000,-300.61,0.00011333,2]
[426588932,1782640147000,138.03308685,0.00010263,2]
[426588931,1782640147000,173.26691315,0.00010263,2]
[426588930,1782640147000,311.3,0.0001022,2]
[426588929,1782640147000,-89.1036488,0.00012068,2]
[426588928,1782640147000,-188.68048698,0.00012054,2]
[426588927,1782640147000,-301.87,0.00012052,2]
[426588934,1782640148000,311.3,0.00010349,2]
[426588933,1782640148000,311.3,0.00010306,2]
[426588935,1782640148000,311.3,0.00010392,2]
[426588936,1782640148000,311.3,0.00010435,2]
[426588937,1782640149000,311.3,0.00010478,2]
[426588938,1782640150000,311.3,0.00010521,2]
[426588939,1782640151000,311.3,0.00010564,2]
[426588943,1782640152000,311.3,0.00010651,2]
[426588940,1782640152000,311.3,0.00010607,2]
[426588941,1782640152000,-250.0,0.00011196,2]
[426588942,1782640152000,-250.0,0.00011232,2]
[426588944,1782640153000,311.3,0.00010694,2]
[426588945,1782640154000,311.3,0.00010737,2]
[426588946,1782640155000,311.3,0.0001078,2]
[426588947,1782640155000,311.3,0.00010823,2]
[426588948,1782640156000,311.3,0.00010866,2]
[426588949,1782640157000,-5408.76749,0.00012068,2]
[426588950,1782640157000,311.3,0.00010909,2]
[426588951,1782640158000,311.3,0.00010952,2]
[426588953,1782640159000,311.3,0.00011038,2]
[426588952,1782640159000,311.3,0.00010995,2]
[426588954,1782640160000,311.3,0.00011081,2]
[426588955,1782640161000,311.3,0.00011124,2]
[426588956,1782640162000,311.3,0.00011167,2]
[426588957,1782640163000,311.3,0.0001121,2]
[426588958,1782640164000,311.3,0.00011253,2]
[426588959,1782640164000,311.3,0.00011296,2]
[426588975,1782640169000,-500.0,0.00012165,2]
[426588976,1782640169000,-500.0,0.00012165,2]
[426588974,1782640169000,-500.0,0.00012165,2]
[426588973,1782640169000,-500.0,0.00012165,2]
[426588969,1782640169000,-500.0,0.00012165,2]
[426588971,1782640169000,-500.0,0.00012165,2]
[426588970,1782640169000,-296.54903417,0.00012165,2]
[426588972,1782640169000,-550.14314586,0.00012165,2]
[426588963,1782640169000,-306.97446578,0.00012165,2]
[426588966,1782640169000,-500.0,0.00012165,2]
[426588964,1782640169000,-500.0,0.00012165,2]
[426588967,1782640169000,-500.0,0.00012165,2]
[426588968,1782640169000,-500.0,0.00012165,2]
[426588962,1782640169000,-312.01,0.00012082,2]
[426588960,1782640169000,-8519.82605494,0.00012068,2]
[426588961,1782640169000,-188.68048698,0.00012068,2]
[426588977,1782640169000,-500.0,0.00012165,2]
[426588965,1782640169000,-500.0,0.00012165,2]
[426588978,1782640169000,-499.31671649,0.00012165,2]
[426588997,1782640169000,-500.0,0.00012165,2]
[426588979,1782640169000,-500.0,0.00012165,2]
[426588996,1782640169000,-500.0,0.00012165,2]
[426588998,1782640169000,-211.15525625,0.00012165,2]
[426588995,1782640169000,-500.0,0.00012165,2]
[426588992,1782640169000,-500.0,0.00012165,2]
[426588994,1782640169000,-500.0,0.00012165,2]
[426588993,1782640169000,-500.0,0.00012165,2]
[426588980,1782640169000,-353.16483264,0.00012165,2]
[426588990,1782640169000,-500.0,0.00012165,2]
[426588991,1782640169000,-500.0,0.00012165,2]
[426588988,1782640169000,-500.0,0.00012165,2]
[426588987,1782640169000,-500.0,0.00012165,2]
[426588983,1782640169000,-500.0,0.00012165,2]
[426588985,1782640169000,-500.0,0.00012165,2]
[426588986,1782640169000,-383.77282596,0.00012165,2]
[426588984,1782640169000,-583.99882782,0.00012165,2]
[426588982,1782640169000,-500.0,0.00012165,2]
[426588981,1782640169000,-500.0,0.00012165,2]
[426588989,1782640169000,-500.0,0.00012165,2]
[426589005,1782640176000,-500.0,0.00012165,2]
[426588999,1782640176000,-288.84474375,0.00012165,2]
[426589000,1782640176000,-500.0,0.00012165,2]
[426589002,1782640176000,-500.0,0.00012165,2]
[426589003,1782640176000,-500.0,0.00012165,2]
[426589001,1782640176000,-500.0,0.00012165,2]
[426589006,1782640176000,-500.0,0.00012165,2]
[426589004,1782640176000,-500.0,0.00012165,2]
[426589009,1782640176000,-244.23379904,0.00012165,2]
[426589010,1782640176000,-255.76620096,0.00012165,2]
[426589007,1782640176000,-113.10696485,0.00012165,2]
[426589011,1782640176000,-500.0,0.00012165,2]
[426589008,1782640176000,-386.89303515,0.00012165,2]
[426589018,1782640177000,-394.34938088,0.00012165,2]
[426589017,1782640177000,-500.0,0.00012165,2]
[426589016,1782640177000,-500.0,0.00012165,2]
[426589015,1782640177000,-500.0,0.00012165,2]
[426589013,1782640177000,-251.83612676,0.00012165,2]
[426589014,1782640177000,-500.0,0.00012165,2]
[426589012,1782640177000,-500.0,0.00012165,2]
[426589020,1782640201000,-105.65061912,0.00012165,2]
[426589021,1782640201000,-1000.0,0.00012166,2]
[426589022,1782640201000,-226.08604423,0.00012167,2]
[426589024,1782640201000,-500.0,0.00012167,2]
[426589023,1782640201000,-334.54834865,0.00012167,2]
[426589025,1782640201000,-500.0,0.00012167,2]
[426589027,1782640201000,-328.92635078,0.00012167,2]
[426589028,1782640201000,-440.95373185,0.00012167,2]
[426589029,1782640201000,-134.487219,0.00012167,2]
[426589030,1782640201000,-365.512781,0.00012167,2]
[426589032,1782640201000,-500.0,0.00012167,2]
[426589031,1782640201000,-500.0,0.00012167,2]
[426589033,1782640201000,-2628.0483283,0.00012167,2]
[426589026,1782640201000,-500.0,0.00012167,2]
[426589038,1782640231000,-5947.2286,0.00012067,2]
[426589037,1782640231000,-1500.0,0.00012067,2]
[426589103,1782640232000,-500.0,0.00013698,2]
[426589101,1782640232000,-500.0,0.00013698,2]
[426589104,1782640232000,-500.0,0.00013698,2]
[426589100,1782640232000,-261.95554425,0.00013698,7]
[426589099,1782640232000,-500.0,0.00013698,2]
[426589122,1782640232000,-160.0,0.00013822,2]
[426589097,1782640232000,-500.0,0.00013698,2]
[426589096,1782640232000,-500.0,0.00013698,2]
[426589105,1782640232000,-500.0,0.00013698,2]
[426589095,1782640232000,-500.0,0.00013698,2]
[426589093,1782640232000,-500.0,0.00013698,2]
[426589102,1782640232000,-500.0,0.00013698,2]
[426589098,1782640232000,-500.0,0.00013698,2]
[426589106,1782640232000,-500.0,0.00013698,2]
[426589117,1782640232000,-151.0,0.00013698,2]
[426589107,1782640232000,-500.0,0.00013698,2]
[426589110,1782640232000,-500.0,0.00013698,2]
[426589119,1782640232000,-298.0,0.00013698,2]
[426589109,1782640232000,-500.0,0.00013698,2]
[426589118,1782640232000,-151.0,0.00013698,2]
[426589113,1782640232000,-201.70776136,0.00013698,2]
[426589112,1782640232000,-151.0,0.00013698,2]
[426589114,1782640232000,-151.0,0.00013698,2]
[426589115,1782640232000,-151.0,0.00013698,2]
[426589111,1782640232000,-500.0,0.00013698,2]
[426589091,1782640232000,-508.57397179,0.00013698,2]
[426589116,1782640232000,-152.0,0.00013698,2]
[426589120,1782640232000,-500.0,0.00013698,2]
[426589121,1782640232000,-166.66,0.00013805,2]
[426589108,1782640232000,-500.0,0.00013698,2]
[426589089,1782640232000,-500.0,0.00013698,2]
[426589066,1782640232000,-1564.62,0.00013,2]
[426589087,1782640232000,-4999.99,0.00013666,2]
[426589039,1782640232000,-340.4135542,0.00012167,2]
[426589042,1782640232000,-250.0,0.00012294,2]
[426589043,1782640232000,-312.01,0.00012384,2]
[426589041,1782640232000,-250.0,0.00012167,2]
[426589040,1782640232000,-209.36548349,0.00012167,2]
[426589045,1782640232000,-255.0,0.000125,2]
[426589046,1782640232000,-24657.57,0.000125,2]
[426589044,1782640232000,-150.2,0.00012441,2]
[426589050,1782640232000,-38063.27,0.000125,2]
[426589049,1782640232000,-999.99,0.000125,2]
[426589047,1782640232000,-9999.99,0.000125,2]
[426589052,1782640232000,-9999.99,0.000125,2]
[426589056,1782640232000,-150.99,0.000125,2]
[426589081,1782640232000,-11530.02,0.00013666,2]
[426589054,1782640232000,-2546.43,0.000125,2]
[426589058,1782640232000,-151.0,0.00012657,2]
[426589062,1782640232000,-177.79,0.00013,2]
[426589064,1782640232000,-9999.99,0.00013,2]
[426589068,1782640232000,-9999.99,0.00013,2]
[426589071,1782640232000,-500.0,0.00013384,2]
[426589069,1782640232000,-250.0,0.00013384,2]
[426589075,1782640232000,-166.66,0.0001352,2]
[426589077,1782640232000,-500.0,0.00013598,2]
[426589079,1782640232000,-433.0,0.00013666,2]
[426589076,1782640232000,-274.16,0.00013569,2]
[426589073,1782640232000,-1200.58,0.00013384,2]
[426589083,1782640232000,-9557.78,0.00013666,2]
[426589085,1782640232000,-12046.3,0.00013666,2]
[426589048,1782640232000,-299.99,0.000125,2]
[426589060,1782640232000,-151.0,0.00012657,2]
[426589124,1782640232000,-500.0,0.00013972,2]
[426589126,1782640232000,-166.66,0.0001409,2]
[426589160,1782640232000,-424.82852962,0.00015293,2]
[426589158,1782640232000,-206.75701386,0.00015068,2]
[426589162,1782640232000,-464.54,0.00015469,2]
[426589169,1782640232000,-300.0,0.00016,2]
[426589170,1782640232000,-424.24749189,0.00016,2]
[426589161,1782640232000,-927.4,0.00015454,2]
[426589168,1782640232000,-166.14,0.00015857,2]
[426589163,1782640232000,-200.0,0.00015471,2]
[426589164,1782640232000,-162.64,0.00015489,2]
[426589165,1782640232000,-167.66,0.00015598,2]
[426589166,1782640232000,-500.0,0.0001565,2]
[426589167,1782640232000,-199.5,0.00015768,2]
[426589172,1782640232000,-424.24749189,0.000162,2]
[426589159,1782640232000,-2016.6,0.00015159,2]
[426589171,1782640232000,-424.24749189,0.000161,2]
[426589181,1782640232000,-500.0,0.00016438,2]
[426589180,1782640232000,-500.0,0.00016438,2]
[426589182,1782640232000,-500.0,0.00016438,2]
[426589174,1782640232000,-938.2792234,0.00016438,2]
[426589178,1782640232000,-500.0,0.00016438,2]
[426589177,1782640232000,-500.0,0.00016438,2]
[426589179,1782640232000,-500.0,0.00016438,2]
[426589175,1782640232000,-1255.9488366,0.00016438,2]
[426589184,1782640232000,-500.0,0.00016438,2]
[426589183,1782640232000,-500.0,0.00016438,2]
[426589186,1782640232000,-500.0,0.00016438,2]
[426589185,1782640232000,-500.0,0.00016438,2]
[426589123,1782640232000,-160.0,0.00013829,2]
[426589173,1782640232000,-249.0,0.00016319,2]
[426589155,1782640232000,-500.0,0.00014999,2]
[426589176,1782640232000,-500.0,0.00016438,2]
[426589150,1782640232000,-199.14350739,0.00014891,2]
[426589125,1782640232000,-250.0,0.00014,2]
[426589151,1782640232000,-736.0,0.00014935,2]
[426589128,1782640232000,-500.0,0.00014246,2]
[426589131,1782640232000,-302.46,0.0001425,2]
[426589130,1782640232000,-213.0,0.0001425,2]
[426589129,1782640232000,-150.0,0.0001425,2]
[426589132,1782640232000,-159.38643302,0.0001425,2]
[426589134,1782640232000,-500.0,0.0001452,2]
[426589133,1782640232000,-166.66,0.00014374,2]
[426589138,1782640232000,-14017.69719367,0.00014859,2]
[426589135,1782640232000,-166.66,0.00014659,2]
[426589136,1782640232000,-392.93331638,0.00014794,7]
[426589137,1782640232000,-500.0,0.00014794,2]
[426589139,1782640232000,-160.0,0.00014886,2]
[426589127,1782640232000,-169.3,0.00014232,2]
[426589143,1782640232000,-500.0,0.00014891,2]
[426589145,1782640232000,-500.0,0.00014891,2]
[426589157,1782640232000,-538.42378366,0.00014999,2]
[426589154,1782640232000,-500.0,0.00014999,2]
[426589152,1782640232000,-166.66,0.00014944,2]
[426589156,1782640232000,-335.46174877,0.00014999,2]
[426589146,1782640232000,-500.0,0.00014891,2]
[426589149,1782640232000,-500.0,0.00014891,2]
[426589147,1782640232000,-500.0,0.00014891,2]
[426589144,1782640232000,-500.0,0.00014891,2]
[426589141,1782640232000,-577.72670713,0.00014891,2]
[426589148,1782640232000,-500.0,0.00014891,2]
[426589140,1782640232000,-500.0,0.00014891,2]
[426589153,1782640232000,-500.0,0.00014999,2]
[426589142,1782640232000,-500.0,0.00014891,2]
[426589212,1782640233000,-500.0,0.00016438,2]
[426589219,1782640233000,-1107.55243317,0.00016438,2]
[426589213,1782640233000,-500.0,0.00016438,2]
[426589220,1782640233000,-1107.55243317,0.00016438,2]
[426589216,1782640233000,-1107.55243317,0.00016438,2]
[426589221,1782640233000,-1107.55243317,0.00016438,2]
[426589222,1782640233000,-1107.55243317,0.00016438,2]
[426589223,1782640233000,-1107.55243317,0.00016438,2]
[426589226,1782640233000,-1107.55243317,0.00016438,2]
[426589224,1782640233000,-1107.55243317,0.00016438,2]
[426589218,1782640233000,-1107.55243317,0.00016438,2]
[426589230,1782640233000,-1107.55243317,0.00016438,2]
[426589229,1782640233000,-1107.55243317,0.00016438,2]
[426589227,1782640233000,-1107.55243317,0.00016438,2]
[426589228,1782640233000,-1107.55243317,0.00016438,2]
[426589231,1782640233000,-1107.55243317,0.00016438,2]
[426589233,1782640233000,-1107.55243317,0.00016438,2]
[426589232,1782640233000,-1107.55243317,0.00016438,2]
[426589234,1782640233000,-1107.55243317,0.00016438,2]
[426589236,1782640233000,-1107.55243317,0.00016438,2]
[426589237,1782640233000,-1107.55243317,0.00016438,2]
[426589210,1782640233000,-500.0,0.00016438,2]
[426589235,1782640233000,-1107.55243317,0.00016438,2]
[426589225,1782640233000,-1107.55243317,0.00016438,2]
[426589217,1782640233000,-1107.55243317,0.00016438,2]
[426589203,1782640233000,-500.0,0.00016438,2]
[426589215,1782640233000,-1107.55243317,0.00016438,2]
[426589239,1782640233000,-1107.55243317,0.00016438,2]
[426589189,1782640233000,-500.0,0.00016438,2]
[426589191,1782640233000,-500.0,0.00016438,2]
[426589192,1782640233000,-500.0,0.00016438,2]
[426589188,1782640233000,-500.0,0.00016438,2]
[426589190,1782640233000,-575.49941011,0.00016438,2]
[426589187,1782640233000,-500.0,0.00016438,2]
[426589193,1782640233000,-500.0,0.00016438,2]
[426589194,1782640233000,-500.0,0.00016438,2]
[426589195,1782640233000,-500.0,0.00016438,2]
[426589197,1782640233000,-500.0,0.00016438,2]
[426589214,1782640233000,-1107.55243317,0.00016438,2]
[426589198,1782640233000,-500.0,0.00016438,2]
[426589202,1782640233000,-500.0,0.00016438,2]
[426589205,1782640233000,-500.0,0.00016438,2]
[426589199,1782640233000,-500.0,0.00016438,2]
[426589204,1782640233000,-500.0,0.00016438,2]
[426589200,1782640233000,-500.0,0.00016438,2]
[426589201,1782640233000,-500.0,0.00016438,2]
[426589206,1782640233000,-500.0,0.00016438,2]
[426589207,1782640233000,-500.0,0.00016438,2]
[426589208,1782640233000,-500.0,0.00016438,2]
[426589209,1782640233000,-500.0,0.00016438,2]
[426589211,1782640233000,-500.0,0.00016438,2]
[426589196,1782640233000,-500.0,0.00016438,2]
[426589238,1782640233000,-1107.55243317,0.00016438,2]
[426589261,1782640233000,-1092.78506741,0.00016438,2]
[426589240,1782640233000,-1107.55243317,0.00016438,2]
[426589272,1782640233000,-927.4,0.00017386,2]
[426589268,1782640233000,-250.0,0.0001645,2]
[426589273,1782640233000,-2002.70712189,0.00017651,2]
[426589274,1782640233000,-12014.99007178,0.00017651,2]
[426589276,1782640233000,-167.66,0.00018172,2]
[426589278,1782640233000,-5199.06,0.00018765,2]
[426589277,1782640233000,-4101.13,0.00018714,2]
[426589241,1782640233000,-1107.55243317,0.00016438,2]
[426589280,1782640233000,-927.4,0.00019318,2]
[426589275,1782640233000,-4578.83144082,0.00018072,2]
[426589281,1782640233000,-175.0,0.0001938,2]
[426589271,1782640233000,-200.0,0.00017071,2]
[426589279,1782640233000,-20527.96,0.00019178,2]
[426589284,1782640233000,-158.0,0.0002,2]
[426589285,1782640233000,-377.0,0.0002,2]
[426589289,1782640233000,-166.23341983,0.0002,2]
[426589287,1782640233000,-289.0,0.0002,2]
[426589292,1782640233000,-150.0,0.0002,2]
[426589286,1782640233000,-379.0,0.0002,2]
[426589293,1782640233000,-1500.0,0.00020001,2]
[426589288,1782640233000,-155.0,0.0002,2]
[426589290,1782640233000,-562.0,0.0002,2]
[426589291,1782640233000,-156.86502605,0.0002,20]
[426589294,1782640233000,-1437.97934031,0.00020001,2]
[426589283,1782640233000,-1000.0,0.00019811,2]
[426589270,1782640233000,-167.66,0.00016885,2]
[426589282,1782640233000,-599.14345644,0.00019689,2]
[426589265,1782640233000,-1092.78506741,0.00016438,2]
[426589243,1782640233000,-1107.55243317,0.00016438,2]
[426589242,1782640233000,-1107.55243317,0.00016438,2]
[426589269,1782640233000,-172.02,0.00016712,2]
[426589246,1782640233000,-1107.55243317,0.00016438,2]
[426589249,1782640233000,-1107.55243317,0.00016438,2]
[426589244,1782640233000,-1107.55243317,0.00016438,2]
[426589247,1782640233000,-1107.55243317,0.00016438,2]
[426589248,1782640233000,-1107.55243317,0.00016438,2]
[426589251,1782640233000,-1107.55243317,0.00016438,2]
[426589250,1782640233000,-1107.55243317,0.00016438,2]
[426589253,1782640233000,-1107.55243317,0.00016438,2]
[426589255,1782640233000,-1092.78506741,0.00016438,2]
[426589245,1782640233000,-1107.55243317,0.00016438,2]
[426589252,1782640233000,-1107.55243317,0.00016438,2]
[426589258,1782640233000,-1092.78506741,0.00016438,2]
[426589267,1782640233000,-233.6,0.00016438,2]
[426589263,1782640233000,-1092.78506741,0.00016438,2]
[426589264,1782640233000,-1092.78506741,0.00016438,2]
[426589262,1782640233000,-1092.78506741,0.00016438,2]
[426589266,1782640233000,-1092.7850674,0.00016438,2]
[426589257,1782640233000,-885.90256777,0.00016438,2]
[426589259,1782640233000,-1092.78506741,0.00016438,2]
[426589256,1782640233000,-206.88249964,0.00016438,2]
[426589254,1782640233000,-1092.78506741,0.00016438,2]
[426589260,1782640233000,-1092.78506741,0.00016438,2]
[426589295,1782640235000,311.04,0.00011559,2]
[426589296,1782640236000,311.04,0.00011694,2]
[426589297,1782640237000,311.04,0.00011829,2]
[426589310,1782640238000,-8683.38114718,0.00020442,2]
[426589315,1782640238000,-169.14680648,0.00020533,2]
[426589314,1782640238000,-151.0,0.00020533,2]
[426589313,1782640238000,-151.0,0.00020533,2]
[426589312,1782640238000,-151.0,0.00020533,2]
[426589309,1782640238000,-5334.31604649,0.00020442,2]
[426589308,1782640238000,-216.0,0.00020381,2]
[426589300,1782640238000,-311.04,0.00011964,2]
[426589305,1782640238000,-62.02065969,0.00020001,2]
[426589311,1782640238000,-151.0,0.00020533,2]
[426589306,1782640238000,-4578.83144077,0.00020196,2]
[426589303,1782640238000,-500.0,0.00013971,2]
[426589301,1782640238000,-1117.90274246,0.00013699,2]
[426589304,1782640238000,-158.26023096,0.00013971,2]
[426589302,1782640238000,-234.18384406,0.00013971,2]
[426589307,1782640238000,-226.497248,0.00020381,2]
[426589317,1782640238000,-151.0,0.00020533,2]
[426589329,1782640238000,-151.0,0.00020533,2]
[426589319,1782640238000,-151.0,0.00020533,2]
[426589330,1782640238000,-151.0,0.00020533,2]
[426589335,1782640238000,-3200.20943627,0.00020548,2]
[426589332,1782640238000,-1083.97389531,0.00020547,5]
[426589334,1782640238000,-900.05003262,0.00020548,2]
[426589333,1782640238000,-4693.1583,0.00020548,2]
[426589331,1782640238000,-151.0,0.00020533,2]
[426589328,1782640238000,-151.0,0.00020533,2]
[426589326,1782640238000,-151.0,0.00020533,2]
[426589316,1782640238000,-151.0,0.00020533,2]
[426589324,1782640238000,-151.0,0.00020533,2]
[426589322,1782640238000,-151.0,0.00020533,2]
[426589318,1782640238000,-151.0,0.00020533,2]
[426589320,1782640238000,-151.0,0.00020533,2]
[426589325,1782640238000,-151.0,0.00020533,2]
[426589323,1782640238000,-151.0,0.00020533,2]
[426589327,1782640238000,-151.0,0.00020533,2]
[426589321,1782640238000,-151.0,0.00020533,2]
[426589340,1782640240000,-150.0,0.0001222,2]
[426589339,1782640240000,-311.04,0.00012099,2]
[426589342,1782640240000,-182.0,0.00012341,2]
[426589343,1782640240000,-592.89883111,0.00020548,2]
[426589344,1782640240000,-1021.28253089,0.00020548,2]
[426589341,1782640240000,-311.04,0.00012235,2]
[426589346,1782640240000,-970.91684758,0.00020548,2]
[426589348,1782640240000,-132.69755953,0.00020548,2]
[426589347,1782640240000,-311.04,0.0001237,2]
[426589349,1782640240000,-32.31073961,0.00020548,2]
[426589352,1782640240000,-292.805257,0.00020548,2]
[426589351,1782640240000,-276.13657232,0.00020548,2]
[426589345,1782640240000,-2568.261362,0.00020548,2]
[426589357,1782640242000,-156.70001949,0.0001264,2]
[426589356,1782640242000,-311.04,0.00012505,2]
[426589359,1782640242000,-311.04,0.00012775,2]
[426589358,1782640242000,-154.33998051,0.0001264,2]
[426589363,1782640243000,-545.98827082,0.00020548,2]
[426589362,1782640243000,-486.51877204,0.00020548,2]
[426589360,1782640243000,-508.6676123,0.00013971,2]
[426589361,1782640243000,-1842.44583096,0.00020548,2]
[426589366,1782640246000,-4693.1583,0.00020548,2]
[426589364,1782640246000,-1216.95285725,0.00020548,2]
[426589365,1782640246000,-4693.1583,0.00020548,2]
[426589369,1782640246000,-833.76684275,0.00020548,2]
[426589368,1782640246000,-485.42775725,0.00020548,2]
[426589371,1782640246000,-934.95777894,0.00020548,2]
[426589370,1782640246000,-462.31375,0.00020548,2]
[426589367,1782640246000,-4207.73054275,0.00020548,2]
[426589373,1782640247000,-23.14623177,0.00020548,2]
[426589375,1782640303000,392.93331638,0.00013032,7]
[426589374,1782640303000,261.95554424,0.00012308,7]
[426589376,1782640380000,408.62,0.00031507,120]
[426589386,1782640817000,-2953.53274844,0.00011,2]
[426589387,1782640817000,-150.0,0.00011045,2]
[426589390,1782640817000,-6421.45,0.00011123,2]
[426589389,1782640817000,-150.0,0.00011109,2]
[426589391,1782640817000,-75.01725156,0.00011143,2]
[426589388,1782640817000,-250.0,0.0001109,2]
[426589399,1782640818000,-500.0,0.00011172,2]
[426589400,1782640818000,-500.0,0.00011172,2]
[426589401,1782640818000,-500.0,0.00011172,2]
[426589398,1782640818000,-500.0,0.00011172,2]
[426589397,1782640818000,-160.98896315,0.00011172,2]